Workbook

Sheet ReadMe
A1: フィルタ | E1: 伊津野 和行 | O1: f | P1: s
A2: 2019-10-02 | E2: 立命館大学理工学部環境都市工学科 | O2: 0 | P2: 1
E3: izuno@se.ritsumei.ac.jp | O3: 2 | P3: 1
A4: 【説明】 | O4: 2.1 | P4: =0.5+0.5*COS(O4-2) -> 0.9975020826
A5: 波形にFIRフィルタをかけます． | O5: 2.2 | P5: =0.5+0.5*COS(O5-2) -> 0.9900332889
O6: 2.3 | P6: 0.9776682446
A7: 【使い方】 | O7: 2.4 | P7: 0.960530497
A8: 1 | B8: A列の数値を入力する．遮断振動数と遷移帯域幅は右図参照（図はローパス）． | O8: 2.5 | P8: 0.9387912809
B9: バンドパスフィルタ：低域と高域の遮断振動数を設定． | O9: 2.6 | P9: 0.9126678075
B10: ローパスフィルタ：高域の遮断振動数を設定．低域の遮断振動数A6セルは値を削除． | O10: 2.7 | P10: 0.8824210936
B11: ハイパスフィルタ：低域の遮断振動数を設定．高域の遮断振動数A8セルは値を削除． | O11: 2.8 | P11: 0.8483533547
A12: 2 | B12: B列に時間軸，C列に波形の振幅を入力． | O12: 2.9 | P12: 0.8108049841
A13: 3 | B13: フィルター・ボタンを押す（あるいは表示→マクロ，filterを選んでマクロを実行）． | O13: 3 | P13: 0.7701511529
O14: 3.1 | P14: 0.7267980607
A15: 【詳しくは】 | O15: 3.2 | P15: 0.6811788772
A16: 表示→マクロ→編集を選んで，VBAプログラムを見て下さい． | O16: 3.3 | P16: 0.6337494143
O17: 3.4 | P17: 0.5849835715
A18: 【改版履歴】 | O18: 3.5 | P18: 0.5353686008
A19: 2018-05-14 | B19: ver. 1.0 | C19: 初版 | O19: 3.6 | P19: 0.4854002388
A20: 2019-10-02 | B20: ver. 2.0 | C20: FFTをエクセルの結果に合わせた | O20: 3.7 | P20: 0.4355777529
O21: 3.8 | P21: 0.3863989527
O22: 3.9 | P22: =0.5+0.5*COS(O22-2) -> 0.3383552166
O23: 4 | P23: 0.2919265817
O24: 4.1 | P24: 0.2475769477
O25: 4.2 | P25: 0.2057494414
O26: 4.3 | P26: 0.1668619894
O27: 4.4 | P27: 0.1313031422
O28: 4.5 | P28: 0.09942819223
O29: 4.6 | P29: =0.5+0.5*COS(O29-2) -> 0.07155562332
O30: 4.7 | P30: 0.04796392899
O31: 4.8 | P31: 0.02888882967
O32: 4.9 | P32: 0.01452091743
O33: 5 | P33: 0.0050037517
O34: 5.1 | P34: =0.5+0.5*COS(O34-2) -> 0.0004324248634
O35: 5.2 | P35: 0
O36: 8 | P36: 0

Sheet 計算
A1: 時間間隔(s) | B1: 時間(s) | C1: 波形 | D1: 調整波形 | E1: 振動数(Hz) | F1: フーリエ振幅 | G1: 振動数(Hz) | H1: 調整フーリエ振幅
A2: 0.05 | B2: 0 | C2: =SIN(2*PI()*B2)+2*SIN(4*PI()*B2)+1.5*SIN(8*PI()*B2) -> 0 | D2: -0.3226099775 | E2: 0 | F2: 3.151192415e-13 | G2: 0 | H2: 9.970596651e-20
A3: データ個数 | B3: =B2+$A$2 -> 0.05 | C3: =SIN(2*PI()*B3)+2*SIN(4*PI()*B3)+1.5*SIN(8*PI()*B3) -> 2.911172273 | D3: 0.0982509487 | E3: 0.15625 | F3: 9.34821227 | G3: 0.01953125 | H3: 4.74911412e-07
A4: 100 | B4: =B3+$A$2 -> 0.1 | C4: 3.371576163 | D4: -0.04317354609 | E4: 0.3125 | F4: 15.10051045 | G4: 0.0390625 | H4: 2.134520764e-06
A5: 低域遮断周波数（Hz) | B5: 0.15 | C5: 1.829452149 | D5: 0.1069158077 | E5: 0.46875 | F5: 14.75367821 | G5: 0.05859375 | H5: 3.057653636e-06
A6: 2 | B6: 0.2 | C6: 0.7000422464 | D6: 0.9538232137 | E6: 0.625 | F6: 7.409556445 | G6: 0.078125 | H6: 1.332954922e-06
A7: 高域遮断周波数（Hz) | B7: 0.25 | C7: 1 | D7: 1.630544392 | E7: 0.78125 | F7: 7.473354472 | G7: 0.09765625 | H7: 4.714810795e-06
A8: 4 | B8: 0.3 | C8: 1.202070786 | D8: 1.004385432 | E8: 0.9375 | F8: 52.10714972 | G8: 0.1171875 | H8: 1.742551632e-06
A9: 遷移帯域幅（Hz) | B9: 0.35 | C9: -0.2114181598 | D9: -0.7277295463 | E9: 1.09375 | F9: 21.25688336 | G9: 0.13671875 | H9: 3.143738003e-06
A10: 0.1 | B10: 0.4 | C10: -2.196005659 | D10: -2.008793152 | E10: 1.25 | F10: 0.8373657302 | G10: 0.15625 | H10: 2.660067427e-06
B11: 0.45 | C11: -2.293138285 | D11: -1.646312528 | E11: 1.40625 | F11: 0.8047530239 | G11: 0.17578125 | H11: 4.762313757e-07
B12: 0.5 | C12: -5.099436498e-15 | D12: -0.1723789247 | E12: 1.5625 | F12: 7.858651094 | G12: 0.1953125 | H12: 3.741126485e-07
B13: 0.55 | C13: 2.293138285 | D13: 0.8702024775 | E13: 1.71875 | F13: 22.41351442 | G13: 0.21484375 | H13: 5.057924271e-07
B14: 0.6 | C14: 2.196005659 | D14: 0.7805547539 | E14: 1.875 | F14: 48.50769719 | G14: 0.234375 | H14: 2.030374456e-06
B15: 0.65 | C15: 0.2114181598 | D15: 0.3298299234 | E15: 2.03125 | F15: 95.01368781 | G15: 0.25390625 | H15: 3.608257604e-06
B16: 0.7 | C16: -1.202070786 | D16: 0.4657896084 | E16: 2.1875 | F16: 6.10824404 | G16: 0.2734375 | H16: 1.027548561e-06
B17: 0.75 | C17: -1 | D17: 0.9245748524 | E17: 2.34375 | F17: 11.93455471 | G17: 0.29296875 | H17: 5.697578869e-06
B18: 0.8 | C18: -0.7000422464 | D18: 0.6376082894 | E18: 2.5 | F18: 9.218503793 | G18: 0.3125 | H18: 2.747167198e-06
B19: 0.85 | C19: -1.829452149 | D19: -0.646631226 | E19: 2.65625 | F19: 4.423845134 | G19: 0.33203125 | H19: 3.762286752e-06
B20: 0.9 | C20: -3.371576163 | D20: -1.775639108 | E20: 2.8125 | F20: 0.6483747972 | G20: 0.3515625 | H20: 4.000413348e-06
B21: 0.95 | C21: -2.911172273 | D21: -1.518426611 | E21: 2.96875 | F21: 0.6619820961 | G21: 0.37109375 | H21: 3.912151245e-07
B22: 1 | C22: 1.684459863e-14 | D22: -0.105890183 | E22: 3.125 | F22: 0.3385277619 | G22: 0.390625 | H22: 9.868743325e-07
B23: 1.05 | C23: 2.911172273 | D23: 1.035690244 | E23: 3.28125 | F23: 2.16525885 | G23: 0.41015625 | H23: 5.982908984e-07
B24: 1.1 | C24: 3.371576163 | D24: 1.011318761 | E24: 3.4375 | F24: 2.588574868 | G24: 0.4296875 | H24: 2.154882259e-06
B25: 1.15 | C25: 1.829452149 | D25: 0.3979981706 | E25: 3.59375 | F25: 0.8196959033 | G25: 0.44921875 | H25: 5.098061004e-06
B26: 1.2 | C26: 0.7000422464 | D26: 0.2456505254 | E26: 3.75 | F26: 11.35923295 | G26: 0.46875 | H26: 5.047735049e-07
B27: 1.25 | C27: 1 | D27: 0.5778566382 | E27: 3.90625 | F27: 47.95672494 | G27: 0.48828125 | H27: 8.056656882e-06
B28: 1.3 | C28: 1.202070786 | D28: 0.4430340923 | E28: 4.0625 | F28: 65.59483833 | G28: 0.5078125 | H28: 5.247783314e-06
B29: 1.35 | C29: -0.2114181598 | D29: -0.5949621936 | E29: 4.21875 | F29: 7.000543909 | G29: 0.52734375 | H29: 4.975797596e-06
B30: 1.4 | C30: -2.196005659 | D30: -1.624633501 | E30: 4.375 | F30: 5.681151963 | G30: 0.546875 | H30: 7.106931468e-06
B31: 1.45 | C31: -2.293138285 | D31: -1.429122422 | E31: 4.53125 | F31: 9.656811427 | G31: 0.56640625 | H31: 3.468023198e-07
B32: 1.5 | C32: 2.866652228e-14 | D32: -0.06385609698 | E32: 4.6875 | F32: 8.608086363 | G32: 0.5859375 | H32: 2.278188501e-06
B33: 1.55 | C33: 2.293138285 | D33: 1.136848785 | E33: 4.84375 | F33: 4.680195746 | G33: 0.60546875 | H33: 6.651441109e-07
B34: 1.6 | C34: 2.196005659 | D34: 1.161641602 | E34: 5 | F34: 8.551088619e-13 | G34: 0.625 | H34: 2.45050559e-06
B35: 1.65 | C35: 0.2114181598 | D35: 0.4443277392 | E35: 5.15625 | F35: 3.59250806 | G35: 0.64453125 | H35: 8.531075916e-06
B36: 1.7 | C36: -1.202070786 | D36: 0.08854060195 | E36: 5.3125 | F36: 4.997542306 | G36: 0.6640625 | H36: 1.680566352e-06
B37: 1.75 | C37: -1 | D37: 0.3225457893 | E37: 5.46875 | F37: 4.093614728 | G37: 0.68359375 | H37: 1.34388902e-05
B38: 1.8 | C38: -0.7000422464 | D38: 0.2956844444 | E38: 5.625 | F38: 1.634172441 | G38: 0.703125 | H38: 1.200933532e-05
B39: 1.85 | C39: -1.829452149 | D39: -0.5541632305 | E39: 5.78125 | F39: 1.14972229 | G39: 0.72265625 | H39: 7.267883602e-06
B40: 1.9 | C40: -3.371576163 | D40: -1.502626327 | E40: 5.9375 | F40: 3.075380896 | G40: 0.7421875 | H40: 1.550372827e-05
B41: 1.95 | C41: -2.911172273 | D41: -1.354564735 | E41: 6.09375 | F41: 3.457740161 | G41: 0.76171875 | H41: 2.744743868e-06
B42: 2 | C42: 5.32291225e-14 | D42: -0.03019006105 | E42: 6.25 | F42: 2.319726311 | G42: 0.78125 | H42: 5.867760245e-06
B43: 2.05 | C43: 2.911172273 | D43: 1.216175191 | E43: 6.40625 | F43: 0.3049909916 | G43: 0.80078125 | H43: 2.521072086e-07
B44: 2.1 | C44: 3.371576163 | D44: 1.283354997 | E44: 6.5625 | F44: 1.646346389 | G44: 0.8203125 | H44: 3.157883892e-06
B45: 2.15 | C45: 1.829452149 | D45: 0.4828253583 | E45: 6.71875 | F45: 2.710569573 | G45: 0.83984375 | H45: 1.958341491e-05
B46: 2.2 | C46: 0.7000422464 | D46: -0.04445555352 | E46: 6.875 | F46: 2.509818404 | G46: 0.859375 | H46: 9.671285534e-06
B47: 2.25 | C47: 1 | D47: 0.1023964433 | E47: 7.03125 | F47: 1.231990186 | G47: 0.87890625 | H47: 3.363978667e-05
B48: 2.3 | C48: 1.202070786 | D48: 0.1664146986 | E48: 7.1875 | F48: 0.4919212299 | G48: 0.8984375 | H48: 4.465553293e-05
B49: 2.35 | C49: -0.2114181598 | D49: -0.5176857648 | E49: 7.34375 | F49: 1.885591182 | G49: 0.91796875 | H49: 1.589602404e-05
B50: 2.4 | C50: -2.196005659 | D50: -1.391477244 | E50: 7.5 | F50: 2.365687828 | G50: 0.9375 | H50: 7.220749716e-05
B51: 2.45 | C51: -2.293138285 | D51: -1.285112075 | E51: 7.65625 | F51: 1.777750065 | G51: 0.95703125 | H51: 3.186885394e-05
B52: 2.5 | C52: -5.347480271e-14 | D52: 0.0004013993206 | E52: 7.8125 | F52: 0.4371491181 | G52: 0.9765625 | H52: 6.054756605e-05
B53: 2.55 | C53: 2.293138285 | D53: 1.286966289 | E53: 7.96875 | F53: 1.031394123 | G53: 0.99609375 | H53: 7.383187993e-05
B54: 2.6 | C54: 2.196005659 | D54: 1.394418997 | E54: 8.125 | F54: 1.977854158 | G54: 1.015625 | H54: 1.247097772e-05
B55: 2.65 | C55: 0.2114181598 | D55: 0.5186421793 | E55: 8.28125 | F55: 2.008479399 | G55: 1.03515625 | H55: 7.504844965e-05
B56: 2.7 | C56: -1.202070786 | D56: -0.1697570429 | E56: 8.4375 | F56: 1.145403354 | G56: 1.0546875 | H56: 3.373931291e-05
B57: 2.75 | C57: -1 | D57: -0.1080151449 | E57: 8.59375 | F57: 0.1988686611 | G57: 1.07421875 | H57: 3.887585446e-05
B58: 2.8 | C58: -0.7000422464 | D58: 0.04111501696 | E58: 8.75 | F58: 1.414425382 | G58: 1.09375 | H58: 4.412125599e-05
B59: 2.85 | C59: -1.829452149 | D59: -0.4818698219 | E59: 8.90625 | F59: 1.966058544 | G59: 1.11328125 | H59: 1.945278307e-06
B60: 2.9 | C60: -3.371576163 | D60: -1.280418101 | E60: 9.0625 | F60: 1.625128644 | G60: 1.1328125 | H60: 2.375793327e-05
B61: 2.95 | C61: -2.911172273 | D61: -1.214325465 | E61: 9.21875 | F61: 0.5622785414 | G61: 1.15234375 | H61: 8.47876638e-06
B62: 3 | C62: -2.034852321e-13 | D62: 0.03099150675 | E62: 9.375 | F62: 0.7358332074 | G62: 1.171875 | H62: 3.910752463e-06
B63: 3.05 | C63: 2.911172273 | D63: 1.356417184 | E63: 9.53125 | F63: 1.686161812 | G63: 1.19140625 | H63: 1.339237384e-06
B64: 3.1 | C64: 3.371576163 | D64: 1.505563019 | E64: 9.6875 | F64: 1.867599157 | G64: 1.2109375 | H64: 4.357984239e-08
B65: 3.15 | C65: 1.829452149 | D65: 0.5551172986 | E65: 9.84375 | F65: 1.205075856 | G65: 1.23046875 | H65: 1.486089941e-07
B66: 3.2 | C66: 0.7000422464 | D66: -0.2990173303 | E66: 10 | F66: 3.106783494e-13 | G66: 1.25 | H66: 2.185010482e-06
B67: 3.25 | C67: =SIN(2*PI()*B67)+2*SIN(4*PI()*B67)+1.5*SIN(8*PI()*B67) -> 1 | D67: -0.3281455552 | G67: 1.26953125 | H67: 4.384422117e-06
B68: =B67+$A$2 -> 3.3 | C68: 1.202070786 | D68: -0.09186807571 | G68: 1.2890625 | H68: 1.510081043e-05
B69: 3.35 | C69: -0.2114181598 | D69: -0.4433763 | G69: 1.30859375 | H69: 3.247819855e-06
B70: 3.4 | C70: -2.196005659 | D70: -1.158719451 | G70: 1.328125 | H70: 2.274674863e-05
B71: 3.45 | C71: -2.293138285 | D71: -1.135009769 | G71: 1.34765625 | H71: 1.93498598e-05
B72: 3.5 | C72: -2.635138201e-13 | D72: 0.06465349211 | G72: 1.3671875 | H72: 8.842548594e-06
B73: 3.55 | C73: 2.293138285 | D73: 1.430966866 | G73: 1.38671875 | H73: 1.125931534e-05
B74: 3.6 | C74: 2.196005659 | D74: 1.627555244 | G74: 1.40625 | H74: 1.648049144e-06
B75: 3.65 | C75: 0.2114181598 | D75: 0.5959107052 | G75: 1.42578125 | H75: 2.589692521e-05
B76: 3.7 | C76: -1.202070786 | D76: -0.4463463114 | G76: 1.4453125 | H76: 4.971912284e-05
B77: 3.75 | C77: -1 | D77: -0.5834186481 | G77: 1.46484375 | H77: 2.907661808e-05
B78: 3.8 | C78: -0.7000422464 | D78: -0.248953761 | G78: 1.484375 | H78: 0.0001317900238
B79: 3.85 | C79: -1.829452149 | D79: -0.3970540228 | G79: 1.50390625 | H79: 5.83709514e-05
B80: 3.9 | C80: -3.371576163 | D80: -1.008421154 | G80: 1.5234375 | H80: 0.0001390293249
B81: 3.95 | C81: -2.911172273 | D81: -1.033868098 | G81: 1.54296875 | H81: 0.0001587070117
B82: 4 | C82: -4.406596615e-13 | D82: 0.1066808547 | G82: 1.5625 | H82: 3.035444079e-05
B83: 4.05 | C83: 2.911172273 | D83: 1.520256859 | G83: 1.58203125 | H83: 9.569736493e-05
B84: 4.1 | C84: 3.371576163 | D84: 1.778536107 | G84: 1.6015625 | H84: 4.845444104e-06
B85: 4.15 | C85: 1.829452149 | D85: 0.6475710049 | G85: 1.62109375 | H85: 0.0001165937407
B86: 4.2 | C86: 0.7000422464 | D86: -0.6408887595 | G86: 1.640625 | H86: 0.0003577349774
B87: 4.25 | C87: 1 | D87: -0.9300805168 | G87: 1.66015625 | H87: 4.850207426e-05
B88: 4.3 | C88: 1.202070786 | D88: -0.4690575785 | G88: 1.6796875 | H88: 0.0009635377353
B89: 4.35 | C89: -0.2114181598 | D89: -0.3288962164 | G89: 1.69921875 | H89: 0.0007762037152
B90: 4.4 | C90: -2.196005659 | D90: -0.7776913402 | G90: 1.71875 | H90: 0.0009954824065
B91: 4.45 | C91: -2.293138285 | D91: -0.8684032556 | G91: 1.73828125 | H91: 0.001892916899
B92: 4.5 | C92: -4.57565626e-13 | D92: 0.173160241 | G92: 1.7578125 | H92: 0.0001285191612
B93: 4.55 | C93: 2.293138285 | D93: 1.648122475 | G93: 1.77734375 | H93: 0.001463043956
B94: 4.6 | C94: 2.196005659 | D94: 2.011655762 | G94: 1.796875 | H94: 0.0002227905216
B95: 4.65 | C95: 0.2114181598 | D95: 0.7286574695 | G95: 1.81640625 | H95: 0.001132509469
B96: 4.7 | C96: -1.202070786 | D96: -1.007623265 | G96: 1.8359375 | H96: 0.008280446106
B97: 4.75 | C97: -1 | D97: -1.635975464 | G97: 1.85546875 | H97: 0.004860917843
B98: 4.8 | C98: -0.7000422464 | D98: -0.9570451058 | G98: 1.875 | H98: 0.03506906375
B99: 4.85 | C99: -1.829452149 | D99: -0.1059956276 | G99: 1.89453125 | H99: 0.07690583365
B100: 4.9 | C100: -3.371576163 | D100: 0.04599332683 | G100: 1.9140625 | H100: 0.0379713864
B101: 4.95 | C101: -2.911172273 | D101: -0.09648056739 | G101: 1.93359375 | H101: 0.523538782
B102: 5 | C102: =SIN(2*PI()*B102)+2*SIN(4*PI()*B102)+1.5*SIN(8*PI()*B102) -> -6.778340909e-13 | G102: 1.953125 | H102: 1.402981173
B103: 5.05 | C103: 2.911172273 | G103: 1.97265625 | H103: 13.14304851
B104: 5.1 | C104: 3.371576163 | G104: 1.9921875 | H104: 38.02189521
B105: 5.15 | C105: 1.829452149 | G105: 2.01171875 | H105: 67.04415266
B106: 5.2 | C106: 0.7000422464 | G106: 2.03125 | H106: 85.51165352
B107: 5.25 | C107: 1 | G107: 2.05078125 | H107: 87.66109054
B108: 5.3 | C108: 1.202070786 | G108: 2.0703125 | H108: 79.24164045
B109: 5.35 | C109: -0.2114181598 | G109: 2.08984375 | H109: 67.54645484
B110: 5.4 | C110: -2.196005659 | G110: 2.109375 | H110: 55.14792243
B111: 5.45 | C111: -2.293138285 | G111: 2.12890625 | H111: 42.1943729
B112: 5.5 | C112: -6.83591855e-13 | G112: 2.1484375 | H112: 29.227341
B113: 5.55 | C113: 2.293138285 | G113: 2.16796875 | H113: 17.02237164
B114: 5.6 | C114: 2.196005659 | G114: 2.1875 | H114: 6.109273062
B115: 5.65 | C115: 0.2114181598 | G115: 2.20703125 | H115: 3.091922882
B116: 5.7 | C116: -1.202070786 | G116: 2.2265625 | H116: 10.26867148
B117: 5.75 | C117: -1 | G117: 2.24609375 | H117: 15.27466697
B118: 5.8 | C118: -0.7000422464 | G118: 2.265625 | H118: 18.10060802
B119: 5.85 | C119: -1.829452149 | G119: 2.28515625 | H119: 18.87931739
B120: 5.9 | C120: -3.371576163 | G120: 2.3046875 | H120: 17.87168794
B121: 5.95 | C121: -2.911172273 | G121: 2.32421875 | H121: 15.42138589
B122: 6 | C122: -9.540883708e-13 | G122: 2.34375 | H122: 11.93403053
B123: 6.05 | C123: 2.911172273 | G123: 2.36328125 | H123: 7.846681933
B124: 6.1 | C124: 3.371576163 | G124: 2.3828125 | H124: 3.585157058
B125: 6.15 | C125: 1.829452149 | G125: 2.40234375 | H125: 0.4630604738
B126: 6.2 | C126: 0.7000422464 | G126: 2.421875 | H126: 3.97328596
B127: 6.25 | C127: 1 | G127: 2.44140625 | H127: 6.704602863
B128: 6.3 | C128: 1.202070786 | G128: 2.4609375 | H128: 8.508743843
B129: 6.35 | C129: -0.2114181598 | G129: 2.48046875 | H129: 9.333623247
G130: 2.5 | H130: 9.218268991
G131: 2.51953125 | H131: 8.27863654
G132: 2.5390625 | H132: 6.691011447
G133: 2.55859375 | H133: 4.671043908
G134: 2.578125 | H134: 2.449815778
G135: 2.59765625 | H135: 0.2522666441
G136: 2.6171875 | H136: 1.722314824
G137: 2.63671875 | H137: 3.316274171
G138: 2.65625 | H138: 4.423744634
G139: 2.67578125 | H139: 4.995648772
G140: 2.6953125 | H140: 5.038855691
G141: 2.71484375 | H141: 4.609764704
G142: 2.734375 | H142: 3.804299219
G143: 2.75390625 | H143: 2.744751528
G144: 2.7734375 | H144: 1.564880341
G145: 2.79296875 | H145: 0.3955297251
G146: 2.8125 | H146: 0.6483561068
G147: 2.83203125 | H147: 1.478122124
G148: 2.8515625 | H148: 2.038037797
G149: 2.87109375 | H149: 2.308057195
G150: 2.890625 | H150: 2.302499992
G151: 2.91015625 | H151: 2.065005549
G152: 2.9296875 | H152: 1.660783175
G153: 2.94921875 | H153: 1.166926728
G154: 2.96875 | H154: 0.661967269
G155: 2.98828125 | H155: 0.2160564103
G156: 3.0078125 | H156: 0.1172980648
G157: 3.02734375 | H157: 0.3070442662
G158: 3.046875 | H158: 0.3472905467
G159: 3.06640625 | H159: 0.2567586901
G160: 3.0859375 | H160: 0.07508138011
G161: 3.10546875 | H161: 0.1435419539
G162: 3.125 | H162: 0.3385180083
G163: 3.14453125 | H163: 0.4519081118
G164: 3.1640625 | H164: 0.4372029218
G165: 3.18359375 | H165: 0.2667926878
G166: 3.203125 | H166: 0.06280677276
G167: 3.22265625 | H167: 0.5287181849
G168: 3.2421875 | H168: 1.08274232
G169: 3.26171875 | H169: 1.655777708
G170: 3.28125 | H170: 2.165210218
G171: 3.30078125 | H171: 2.524442294
G172: 3.3203125 | H172: 2.653863386
G173: 3.33984375 | H173: 2.491864012
G174: 3.359375 | H174: 2.004459251
G175: 3.37890625 | H175: 1.192875459
G176: 3.3984375 | H176: 0.09772760198
G177: 3.41796875 | H177: 1.201085558
G178: 3.4375 | H178: 2.588504176
G179: 3.45703125 | H179: 3.922999494
G180: 3.4765625 | H180: 5.048928859
G181: 3.49609375 | H181: 5.81110079
G182: 3.515625 | H182: 6.071846737
G183: 3.53515625 | H183: 5.727646046
G184: 3.5546875 | H184: 4.722950293
G185: 3.57421875 | H185: 3.062695607
G186: 3.59375 | H186: 0.819669175
G187: 3.61328125 | H187: 1.865024949
G188: 3.6328125 | H188: 4.785331273
G189: 3.65234375 | H189: 7.68186866
G190: 3.671875 | H190: 10.25865439
G191: 3.69140625 | H191: 12.20061254
G192: 3.7109375 | H192: 13.20248048
G193: 3.73046875 | H193: 12.99500598
G194: 3.75 | H194: 11.35973946
G195: 3.76953125 | H195: 8.160703404
G196: 3.7890625 | H196: 3.364392605
G197: 3.80859375 | H197: 2.965064687
G198: 3.828125 | H198: 10.6431805
G199: 3.84765625 | H199: 19.38973122
G200: 3.8671875 | H200: 28.85585498
... 314 more rows
